Cogmind - Beta 15 @@@ ROGUE MODE // 2025.09.12 @ 14:27:10 Player: shapeshifter Result: Destroyed by S-10 Pest with Light Assault Rifle Performance ------------- Evolutions (0) 0 Regions Visited (3) 600 Robots Destroyed (15) 75 Value Destroyed (428) 428 Prototype IDs (0) 0 Alien Tech Used (0) 0 Bonus (0) 0 TOTAL SCORE: 1103 Bonus ------- None Cogmind --------- Core Integrity 0/250 Matter 245/300 Energy 91/100 System Corruption 0% Temperature Cool (0) Movement Rolling (230) Ox10 Location -10/Subcaves Parts ------- > --- POWER (1) -------- (None) > --- PROPULSION (2) --- Wheel Wheel > --- UTILITY (2) ------ Humpback > --- WEAPON (2) ------- Subdweller Laser Subdweller Machine Gun > --- INVENTORY (35) --- Compact Wheel Subdweller Monowheel Subdweller Monowheel Subdweller Machine Gun Battle Cannon Peak State ------------ > --- POWER ------------ Makeshift Power Source > --- PROPULSION ------- Subdweller Monowheel Subdweller Monowheel > --- UTILITY ---------- Humpback > --- WEAPON ----------- Subdweller Laser Subdweller Machine Gun > --- INVENTORY -------- Wheel Compact Wheel Subdweller Machine Gun [Rating: 14] Favorites ----------- Power Makeshift Power Source Engine Makeshift Power Source Propulsion Light Treads Treads Light Treads Wheel Subdweller Monowheel Utility Small Storage Unit Storage Small Storage Unit Protection Scrap Shield Weapon Assault Rifle Energy Gun Subdweller Laser Ballistic Gun Assault Rifle Build | -11 -10 -10 -10 ------- Run | Yrd Mat Min Sub Slots Evolved . | . . . . Power . | . . . . Propulsion . | . . . . Utility . | . . . . Weapon . | . . . . Parts Attached 16 | 6 . 1 9 Power 3 | 1 . 1 1 Engine 3 | 1 . 1 1 Core . | . . . . Reactor . | . . . . Propulsion 6 | 2 . . 4 Treads 2 | 2 . . . Leg . | . . . . Wheel 4 | . . . 4 Hover . | . . . . Flight . | . . . . Utility 3 | 1 . . 2 Device . | . . . . Storage 2 | 1 . . 1 Processor . | . . . . Hackware . | . . . . Protection 1 | . . . 1 Artifact . | . . . . Weapon 4 | 2 . . 2 Energy Gun 1 | . . . 1 Energy Cannon . | . . . . Ballistic Gun 3 | 2 . . 1 Ballistic Cannon . | . . . . Launcher . | . . . . Special Weapon . | . . . . Impact Weapon . | . . . . Slashing Weapon . | . . . . Piercing Weapon . | . . . . Special Melee Weapon . | . . . . Unidentified Prototypes . | . . . . Parts Lost 8 | . . 1 7 Power 3 | . . 1 2 Propulsion 2 | . . . 2 Utility 1 | . . . 1 Weapon 2 | . . . 2 Highest Loss Streak 4 | . . 1 4 To Critical Strikes 1 | . . . 1 Average Backups 4 | 2 3 5 5 Power . | . 1 1 . Propulsion 3 | 1 2 3 3 Utility . | . . 1 . Weapon . | . . . 1 Tool/Special . | . . . . Unused Backups 6 | . . . 6 Power . | . . . . Propulsion 2 | . . . 2 Utility 2 | . . . 2 Weapon 2 | . . . 2 Tool/Special . | . . . . Average Slot Usage (%) 76 | . 85 71 79 Engine 7 | . 14 . 11 Treads 18 | . 28 28 9 Wheel 8 | . . . 16 Storage 11 | . 14 14 10 Protection 1 | . . . 3 Energy Gun 6 | . . . 11 Ballistic Gun 21 | . 28 28 15 Peak Build Rating 14 | 6 6 6 14 Average Rating 8 | 4 6 5 11 On Entrance 4 | . 6 6 6 Naked Turns . | . . . . Heaviest Build 212 | 12 12 12 212 Greatest Support 40 | 40 40 40 40 Greatest Overweight (x) 10 | . . . 10 Average Overweight (x) 2 | . . . 4 Largest Inventory Capacity 35 | 8 8 8 35 Average Capacity 15 | 6 8 8 22 Most Carried 8 | 5 4 7 8 Average Carried 5 | 2 3 5 5 Final Capacity 35 | 8 8 8 35 Final Carried 6 | 3 4 6 5 Class Distribution -------------------- 69% | Mutant 30% | Hauler-Mutant Dominant Class ---------------- Mutant | -10/Materials Mutant | -10/Mines Hauler-Mutant | -10/Subcaves Resources | -11 -10 -10 -10 ----------- Run | Yrd Mat Min Sub Matter Collected 889 | 266 100 333 190 Remotely . | . . . . Salvage Created 497 | . . 294 203 Parts 39 | . . 19 20 Haulers Intercepted . | . . . . Recyclers Shooed . | . . . . Parts Field Recycled . | . . . . Retrieved Matter . | . . . . Parts Self-Destructed 2 | . . . 2 Prevented . | . . . . Kills | -11 -10 -10 -10 ------- Run | Yrd Mat Min Sub Combat Hostiles Destroyed 14 | . . 8 6 Guns 14 | . . 8 6 Classes Destroyed 4 | . . 3 1 Builder 1 | . . 1 . Swarmer 4 | . . 3 1 Grunt 5 | . . 5 . Subdweller 5 | . . . 5 Best Kill Streak 2 | . . 2 1 Combat Bots Only 2 | . . 2 1 Max Kills in Single Turn 1 | . . 1 1 Gunslinging . | . . . . Exploded . | . . . . Melee . | . . . . Uniques/NPCs Destroyed . | . . . . Combat | -11 -10 -10 -10 -------- Run | Yrd Mat Min Sub Hostile Shots Fired 92 | . . 38 54 Missed 16 | . . 9 7 Hits 76 | . . 29 47 Projectile 76 | . . 29 47 Critical Strikes 5 | . . . 5 Damage Taken 1187 | . . 350 837 Core 255 | . . 56 199 Absorbed by Shields . | . . . . Core Remaining (%) 100 | 100 . . . Volleys Fired 106 | 1 1 47 57 Largest 2 | 2 2 2 2 Hottest 90 | 40 40 40 90 Shots Fired 196 | 2 2 94 98 Gun 196 | 2 2 94 98 Cannon . | . . . . Launcher . | . . . . Special . | . . . . Kinetic 150 | 2 2 94 52 Thermal 46 | . . . 46 Explosive . | . . . . Electromagnetic . | . . . . Robot Hit Streak 14 | . . 5 14 Robot Miss Streak 4 | . 2 3 4 Penetration Max . | . . . . Secondary Targets 2 | . . . 2 Max Gunslinging Chain 1 | . . . 1 Shots Hit Robots 68 | . . 29 39 Core Hits 26 | . . 14 12 Critical Kills 1 | . . 1 . Critical Parts Destroyed . | . . . . Critical Strikes 1 | . . 1 . Destroy 1 | . . 1 . Melee Attacks . | . . . . Impact . | . . . . Slashing . | . . . . Piercing . | . . . . Sneak Attacks . | . . . . Combat Hostiles . | . . . . Follow-up Attacks . | . . . . Damage Inflicted 936 | . . 377 559 Guns 936 | . . 377 559 Cannons . | . . . . Explosions . | . . . . Melee . | . . . . Ramming . | . . . . Kinetic 626 | . . 377 249 Thermal 310 | . . . 310 Explosive . | . . . . Electromagnetic . | . . . . Impact . | . . . . Slashing . | . . . . Piercing . | . . . . Highest Corruption . | . . . . Average Corruption . | . . . . Corruption Purged . | . . . . Corruption Blocked . | . . . . Overload Shots . | . . . . Overflow Damage . | . . . . Projectiles . | . . . . Explosions . | . . . . Melee . | . . . . Knockbacks . | . . . . Impact . | . . . . Kinetic . | . . . . Secondary . | . . . . Self-Inflicted Damage . | . . . . Shots . | . . . . Rammed . | . . . . Targets Rammed . | . . . . Kicked . | . . . . Crushed . | . . . . Highest Temperature 16 | . . 16 . Average Temperature 6 | . . 6 . Received Heat Transfer 249 | . . 177 72 Siege Activations . | . . . . Martial Activations . | . . . . Shielding Activations . | . . . . Robots Disrupted . | . . . . Combat Hostiles . | . . . . Robots Corrupted . | . . . . Combat Hostiles . | . . . . Parts Fried . | . . . . Impact Corruptions . | . . . . Robots Melted . | . . . . Combat Hostiles . | . . . . Parts Melted . | . . . . Heat Transferred 375 | . . . 375 Parts Sabotaged . | . . . . Parts Stolen . | . . . . Parts Stripped . | . . . . Power Chain Reactions . | . . . . Alert | -11 -10 -10 -10 ------- Run | Yrd Mat Min Sub Maximum Alert Level . | . . . . Low Security (%) 100 | 100 100 100 . Level 1 . | . . . . Level 2 . | . . . . Level 3 . | . . . . Level 4 . | . . . . Level 5 . | . . . . High Security . | . . . . Max Security . | . . . . Peak Influence 85 | . . 85 . Initial . | . . . . Average 16 | . . 22 . Influence Increases 230 | . . 200 30 Destroy 0b10 Robot/C 180 | . . 160 20 Destroy 0b10 Robot/NC 5 | . . 5 . Destroy Leader 30 | . . 20 10 Lose Combat Pursuer 15 | . . 15 . Influence Decreases 210 | . . 179 31 Entered New Map 12 | . . . 12 Time Decay 178 | . . 169 9 Lost Part 20 | . . 10 10 Squads Dispatched 1 | . 1 . . Investigation . | . . . . Extermination . | . . . . Reinforcement 1 | . 1 . . Assault . | . . . . Garrison . | . . . . Intercept . | . . . . Searches Triggered . | . . . . Construction Impeded . | . . . . Haulers Reinforced . | . . . . Active Scanning Responses . | . . . . Cargo Convoy Interrupts . | . . . . Stealth | -11 -10 -10 -10 --------- Run | Yrd Mat Min Sub Distress Signals 1 | . . 1 . Communications Jammed . | . . . . Distress Signals . | . . . . Times Spotted 19 | . 2 9 8 Peak Tracking Total 3 | . 2 3 3 Tactical Retreats 1 | . . 1 . Traps | -11 -10 -10 -10 ------- Run | Yrd Mat Min Sub Traps Triggered . | . . . . Indirectly . | . . . . Trap Hack Attempts . | . . . . Triggered . | . . . . Disarmed . | . . . . Reprogrammed . | . . . . Reused . | . . . . Traps Extracted . | . . . . Installed . | . . . . Triggered . | . . . . Machines | -11 -10 -10 -10 ---------- Run | Yrd Mat Min Sub Machines Disabled . | . . . . Max in Single Turn . | . . . . Machines Repaired . | . . . . Machines Dismantled . | . . . . Machines Sabotaged . | . . . . Overloaded Fab Kills . | . . . . Hacking | -11 -10 -10 -10 --------- Run | Yrd Mat Min Sub Machines Accessed 2 | . 2 . . Terminals 2 | . 2 . . Fabricators . | . . . . Repair Stations . | . . . . Recycling Units . | . . . . Scanalyzers . | . . . . Garrison Access . | . . . . Total Hacks 4 | . 4 . . Successful 4 | . 4 . . Failed . | . . . . Catastrophic . | . . . . Database Lockouts . | . . . . Manual 4 | . 4 . . Terminals 4 | . 4 . . Fabricators . | . . . . Repair Stations . | . . . . Recycling Units . | . . . . Scanalyzers . | . . . . Garrison Access . | . . . . Terminal Hacks . | . . . . Fabricator Hacks . | . . . . Repair Station Hacks . | . . . . Recycling Unit Hacks . | . . . . Scanalyzer . | . . . . Garrison Access Hacks . | . . . . Unauthorized Hacks 4 | . 4 . . Terminals 4 | . 4 . . Botnet 2 | . 2 . . Skim 2 | . 2 . . Fabricators . | . . . . Repair Stations . | . . . . Recycling Units . | . . . . Scanalyzers . | . . . . Garrison Access . | . . . . Data Cores Recovered . | . . . . Used . | . . . . Hacking Detections 1 | . 1 . . Full Trace Events . | . . . . Feedback Events . | . . . . Feedback Blocked . | . . . . Robot Schematics Acquired . | . . . . Robots Built . | . . . . Authchips . | . . . . Time . | . . . . Total Robot Build Rating . | . . . . Part Schematics Acquired . | . . . . Parts Built . | . . . . Authchips . | . . . . Time . | . . . . Total Part Build Rating . | . . . . Parts Repaired . | . . . . Time . | . . . . Parts Recycled . | . . . . Recycled Matter . | . . . . Retrieved Matter . | . . . . Retrieved Components . | . . . . Parts Scanalyzed . | . . . . Part Schematics Acquired . | . . . . Parts Damaged . | . . . . Bothacking | -11 -10 -10 -10 ------------ Run | Yrd Mat Min Sub Used RIF Installer . | . . . . Robots Hacked . | . . . . Non-combat . | . . . . Combat . | . . . . Robot Hacks Applied . | . . . . Relay Couplers Released . | . . . . Fabnet Peak Effective % . | . . . . Robots Rewired . | . . . . Allies Hacked . | . . . . Hacks Repelled . | . . . . Allies | -11 -10 -10 -10 -------- Run | Yrd Mat Min Sub Total Allies . | . . . . Largest Group . | . . . . Highest-Rated Group . | . . . . Highest-Rated Ally . | . . . . Total Orders . | . . . . Ally Attacks . | . . . . Total Damage . | . . . . Kills . | . . . . Allies Corrupted . | . . . . Allies Melted . | . . . . Intel | -11 -10 -10 -10 ------- Run | Yrd Mat Min Sub Active Infowar (turns) . | . . . . Robot Analysis Total . | . . . . Derelict Logs Recovered 1 | . . . 1 Drone Launches . | . . . . Drone Recoveries . | . . . . Exploration | -11 -10 -10 -10 ------------- Run | Yrd Mat Min Sub Turns Passed 1812 | 89 160 669 894 Spaces Moved 803 | 58 98 231 416 Core 28 | 19 . . 9 Treads 515 | 39 98 231 147 Legs . | . . . . Wheels 260 | . . . 260 Hover . | . . . . Flight . | . . . . Fastest Speed 50 | 50 160 160 110 Average Speed 163 | 123 160 160 171 Slowest Speed 230 | 160 160 160 230 Overloaded Moves . | . . . . Propulsion Burnouts . | . . . . Robots Hopped . | . . . . Potential Cave-ins . | . . . . Cave-ins Triggered . | . . . . Exploration Rate (%) 25 | 4 19 50 30 Regions Visited 3 Branch Regions 2 Pre-discovered Areas 1 | . . . 1 Known Exits Taken . | . . . . Unknown Exits Taken 3 | 1 1 1 . Scrap Searched 1 | . . 1 . Spaces Dug . | . . . . Terrain Destroyed . | . . . . Melee . | . . . . Projectile . | . . . . AOE . | . . . . Terrain Rammed . | . . . . Walls Destroyed . | . . . . Machines Disabled . | . . . . Actions | -11 -10 -10 -10 --------- Run | Yrd Mat Min Sub Total 1109 | 73 99 437 500 Wait 158 | . . 156 2 Move 800 | 57 97 230 416 Hop . | . . . . Pick Up 24 | 9 1 3 11 Fast Attach 1 | . . . 1 Attach 13 | 6 . 1 6 Detach . | . . . . Swap 2 | . . . 2 Drop 5 | . . . 5 Fire 106 | 1 1 47 57 Melee . | . . . . Ram . | . . . . Kick . | . . . . Crush . | . . . . Escape Stasis . | . . . . Rewire . | . . . . Trap . | . . . . Miscellaneous . | . . . . Route ------- -11/Scrapyard -10/Materials -10/Mines (discovered 2 exits: [*Mat] / [*Sub]) -10/Subcaves (discovered 1 exit: [*Scr]) History --------- Turn | Location | Event 4 | -11/Scrapyard | Discovered new exit (range 15) 90 | -11/Scrapyard | Entered Materials 183 | -10/Materials | Discovered new exit (range 7) 250 | -10/Materials | Entered Mines 274 | -10/Mines | Met a Derelict bent on vengeance 300 | -10/Mines | Build established: Mutant 397 | -10/Mines | Excavation squad dispatched 397 | -10/Mines | A large section of the Mines collapsed 647 | -10/Mines | Excavation squad dispatched 747 | -10/Mines | Discovered new exit (range 7) 898 | -10/Mines | Discovered new exit (range 15) 919 | -10/Mines | Entered Subcaves 920 | -10/Subcaves | Approached by a straggling Scientist 1108 | -10/Subcaves | Shifting Twisted Machinery released Mak. Power Source 1111 | -10/Subcaves | Scientist uncovered a shortcut to Scraptown 1117 | -10/Subcaves | Shifting Twisted Machinery released Barrage Gun 1163 | -10/Subcaves | Shifting Twisted Machinery released Battle Cannon 1167 | -10/Subcaves | Learned location of Zion (-7) 1167 | -10/Subcaves | Met a Zionite searching for "candidates" 1178 | -10/Subcaves | Shifting Twisted Machinery released Sub. Monowheel 1250 | -10/Subcaves | Core integrity fell below 50% 1258 | -10/Subcaves | Core integrity fell below 20% 1272 | -10/Subcaves | Lost 4 parts (2n1u1w) 1517 | -10/Subcaves | A swath of the cavern ceiling suddenly collapsed 1573 | -10/Subcaves | Build established: Hauler-Mutant 1693 | -10/Subcaves | A swath of the cavern ceiling suddenly collapsed 1813 | -10/Subcaves | Destroyed by S-10 Pest with Light Assault Rifle Last Messages --------------- 01268_ Acquired 5 matter. 01273_ Acquired Sub. Machine Gun. 01277_ Subatomizers dissect the Sub. Power Source. 01286_ Acquired Sub. Machine Gun. 01289_ Acquired 30 matter. 01292_ Dropped Wheel. 01292_ Acquired Humpback. 01294_ Acquired 8 matter. 01297_ Acquired Wheel. 01303_ Acquired Battle Cannon. 01418_ Sub. Monowheel shoots sparks and powers down. A swath of the cavern ceiling suddenly collapses. 01566_ Acquired derelict log, extracted data. Data stored: Storage entrances (x1). A swath of the cavern ceiling suddenly collapses. 01694_ Sub. Monowheel shoots sparks and powers down. 01808_ S-10 Pest destroyed. 01808_ Switching to secondary target: S-10 Pest. 01811_ Mak. Power Source destroyed. 01813_ Flight Unit fries itself beyond repair. Map ----- +----------------------------------------------------+ | ?????????????????????????????????????????????????? | | ?????????????????????????????????????????????????? | | ?????????????????????????????????????????????????? | | ?????????????????????????????????????????????????? | | ?????????????????????????????????????????????????? | | ?????????????????????????????????????????????????? | | ?????????????????????????????????????????????????? | | ?????????????????????????????????????????????????? | | ?????????????????????????????????????????????????? | | ?????????????????????????????????????????????????? | | ?????????????????????????????????????????????????? | | ?????????????????????????????????????????????????? | | ?????????????????????????????????????????????????? | | ?????????????????????????????????????????????????? | | ?????????????????????????????????????????????????? | | ????????????????????????????????##???????????????? | | ???????????????????????????????# ???????????????? | | ?????????????????????????????? ????????????????? | | ?????????????????????????????? ?????????????????? | | ????????????????????????????? #?????????????????? | | ????????????????????????????? ??????????????????? | | ???????????????????????????? ??????????????????? | | ????????????????##?????????? #??????????????????? | | ???????????????##"??###???? ### ###?????????????? | | ??????????????###"###"##### #?????????????? | | ???????????#### #"##"# @s #???????? | | ???????????# ##"#; # %s #???????????? | | ??????????# ##"# ## =## # ##???????????? | | ??????????## ???#"" ########?? ##?##?????????? | | ???????????###?????#" ##### ##?????# #????????? | | ???????????????????## #???## #???????? | | ????????????????????# #?## #????????? | | ????????????????????## ### #??????????? | | ?????????????????????# ## #?###??????? | | ?????????????????????# ## #?# ###????? | | ?????????????????????# #?# #????? | | ?????????????????????# ####?# ###??? | | ?????????????????????####### ##???# #??? | | ??????????????????????###### ##?## ##?? | | ?????????????????????## ### ##? | | ????????????????????## ## #? | | ???????????????????## # #? | | ???????????????????# # ##? | | ??????????????????## # ###?? | | ?????????????????## # # # #??## | | ????????????????## #### ## #??? | | ???????????###### ##?# ### #???? | | ??????????## ##?# # ### ##??? | | ?#######?## #### ## ###? | | ##"#" ### ### ## ## ## | +----------------------------------------------------+ Best States ------------- Heat Dissipation 25 Energy Generation 15 Energy Capacity 170 Matter Stores 300 Matter Capacity 300 Sight Range 16 Terrain Scan Density 10 Armor Coverage 800 Evasion (%) 50 Recoil Reduction 2 Item Schematics ----------------- None Robot Schematics ------------------ None Fabricated ------------ Nothing Repaired ---------- Nothing Alien Tech Used ----------------- None Achievements -------------- None Challenges ------------ None Game ------ Seed CoolingHugeScrap Manual? 0 Play Time 00:07:59 Cumulative 282.7 hours Start 2025.09.12 @ 14:21:52 End 2025.09.12 @ 14:27:10 Sessions 1 Manual Loads 0 Difficulty Rogue Special Mode None Game No. 407 Rogue 407 Adventurer 0 Explorer 0 Win Type - Total 8 Types 5/0/1/2/0/0/0/0/0/0 Lore% 83 Gallery% 80 Achievement% 62 Wizard Run 0 Options --------- Layout 0 ASCII 0 Keyboard 0 Movement Mouse Keybinds 0 Fullscreen 1 Font 24/Smallcaps Map View 76x50 Zoom Use 0% Tactical HUD 1 Map Filters NONE Filters NONE Steam 1 RUN: bafdb364-e80c-4967-8888-0e77f3268e44